bitfinex/quotes_SOLUSD_20250814
["timestamp","ask_amount","ask_price","bid_price","bid_amount"]
[1755165512400,4.9254613,205.54,205.49,34.6]
[1755165512401,9.72131228,205.5,205.49,34.6]
[1755165512606,10.09131228,205.5,205.46,0.03]
[1755165512905,9.72131228,205.47,205.46,0.03]
[1755165516615,14.58820282,205.47,205.46,0.03]
[1755165518512,14.95820282,205.47,205.46,0.03]
[1755165519508,14.58820282,205.47,205.46,0.03]
[1755165519817,9.72131228,205.47,205.46,0.03]
[1755165520333,14.58820282,205.47,205.46,0.03]
[1755165520634,14.95820282,205.47,205.46,0.03]
[1755165520839,49.55820282,205.47,205.46,0.03]
[1755165522030,49.55820282,205.47,205.43,0.03]
[1755165522031,79.57,205.45,205.43,0.03]
[1755165522332,89.29131228,205.44,205.43,0.03]
[1755165524538,79.6,205.46,205.45,0.59868772]
[1755165524733,9.72131228,205.49,205.47,0.59868772]
[1755165524919,9.72131228,205.49,205.48,0.72]
[1755165525237,9.72131228,205.5,205.48,0.72]
[1755165525407,9.72131228,205.52,205.49,1.31868772]
[1755165525612,79.6,205.53,205.44,60.6]
[1755165525613,89.32131228,205.53,205.44,5.91868772]
[1755165525837,9.72131228,205.52,205.44,5.91868772]
[1755165526506,79.6,205.53,205.44,5.91868772]
[1755165526710,89.32131228,205.53,205.44,5.91868772]
[1755165526939,89.32131228,205.53,205.44,11.83737572]
[1755165527135,79.6,205.53,205.44,11.83737572]
[1755165527443,0.06,205.54,205.45,15.10621557]
[1755165527642,0.06,205.54,205.44,11.83737572]
[1755165527643,9.78131228,205.54,205.46,0.72]
[1755165528947,0.06,205.54,205.46,0.72]
[1755165529242,9.78131228,205.54,205.46,0.72]
[1755165529544,9.78131228,205.54,205.47,4.864532]
[1755165529918,9.78131228,205.54,205.48,0.72]
[1755165530744,9.78131228,205.54,205.49,26.0]
[1755165531134,9.78131228,205.54,205.5,0.72]
[1755165531528,9.78131228,205.54,205.51,0.72]
[1755165531924,9.78131228,205.54,205.49,26.0]
[1755165532244,0.06,205.54,205.5,0.72]
[1755165532437,0.06,205.54,205.51,34.58]
[1755165532746,0.06,205.54,205.52,0.72]
[1755165532941,0.06,205.54,205.53,0.72]
[1755165533343,0.06,205.54,205.53,26.72]
[1755165538950,0.06,205.54,205.53,35.3]
[1755165540580,79.6,205.53,205.49,9.721312]
[1755165540742,9.72131228,205.5,205.49,9.721312]
[1755165540939,15.24749232,205.5,205.49,9.721312]
[1755165541146,10.38131228,205.5,205.46,35.24]
[1755165541440,80.26,205.52,205.48,26.0]
[1755165541640,80.26,205.52,205.48,26.66]
[1755165541857,9.72131228,205.5,205.48,26.66]
[1755165542038,78.51,205.52,205.48,26.0]
[1755165542240,78.51,205.52,205.49,0.66]
[1755165542434,78.51,205.52,205.5,0.66]
[1755165543040,78.51,205.52,205.51,0.66]
[1755165546173,78.51,205.52,205.5,34.58]
[1755165546543,78.51,205.52,205.5,60.58]
[1755165547044,78.51,205.52,205.5,34.58]
[1755165547045,9.72131228,205.51,205.5,34.58]
[1755165547772,10.38131228,205.51,205.5,34.58]
[1755165548088,9.72131228,205.51,205.5,34.58]
[1755165549983,78.51,205.52,205.47,26.66]
[1755165550182,79.17,205.52,205.48,34.56]
[1755165550563,78.51,205.51,205.48,34.56]
[1755165550979,79.17,205.51,205.47,26.66]
[1755165551188,79.17,205.51,205.48,34.56]
[1755165551594,9.72131228,205.49,205.44,15.27541]
[1755165551775,9.72131228,205.46,205.45,34.56]
[1755165551965,9.72131228,205.47,205.44,26.69]
[1755165552167,9.72131228,205.47,205.45,34.56]
[1755165552365,9.72131228,205.46,205.45,34.56]
[1755165552701,10.38131228,205.46,205.45,26.0]
[1755165554775,78.51,205.48,205.45,26.0]
[1755165555285,9.72131228,205.46,205.45,26.0]
[1755165558162,9.72131228,205.46,205.44,0.03]
[1755165558367,9.72131228,205.45,205.44,0.03]
[1755165559795,10.38131228,205.45,205.44,0.03]
[1755165562896,15.2486766,205.45,205.44,0.03]
[1755165564400,5.52736432,205.45,205.44,0.03]
[1755165564588,14.5886766,205.45,205.44,0.03]
[1755165566293,4.86712742,205.46,205.44,0.03]
[1755165566499,9.72131228,205.45,205.44,0.03]
[1755165567669,10.38131228,205.45,205.44,0.03]
[1755165568886,15.2486766,205.45,205.44,0.03]
[1755165570001,14.5886766,205.45,205.44,0.03]
[1755165571094,9.72131228,205.45,205.44,0.74]
[1755165571300,9.72131228,205.45,205.44,0.03]
[1755165572703,34.58,205.46,205.44,0.03]
[1755165573007,9.72131228,205.45,205.44,0.74]
[1755165573595,9.72131228,205.45,205.44,0.03]
[1755165575206,34.58,205.46,205.44,0.03]
[1755165575412,9.72131228,205.45,205.44,0.03]
[1755165575596,34.58,205.46,205.44,0.03]
[1755165575908,137.3664474,205.49,205.44,0.03]
[1755165576099,9.72131228,205.45,205.44,0.03]
[1755165576296,10.43131228,205.45,205.44,0.03]
[1755165579610,14.5886766,205.45,205.44,0.03]
[1755165580310,9.72131228,205.45,205.44,0.03]
[1755165581792,14.5886766,205.45,205.44,0.03]
[1755165582814,15.2986766,205.45,205.44,0.03]
[1755165583001,14.5886766,205.45,205.44,0.03]
[1755165587922,79.54,205.43,205.41,0.03]
[1755165588130,256.32131228,205.42,205.41,0.03]
[1755165588290,257.03131228,205.42,205.41,0.03]
[1755165589802,261.89938744,205.42,205.41,0.03]
[1755165591920,182.35938744,205.42,205.41,0.03]
[1755165593731,182.35938744,205.42,205.39,0.03]
[1755165593911,9.72131228,205.4,205.39,0.03]
[1755165594112,44.28131228,205.4,205.39,0.03]
[1755165594616,44.28131228,205.4,205.39,0.74]
[1755165594617,9.72131228,205.4,205.39,0.74]
[1755165594818,44.28131228,205.4,205.39,0.74]
[1755165598424,9.72131228,205.4,205.39,0.74]
[1755165598624,44.28131228,205.4,205.39,0.74]
[1755165598834,49.14986145,205.4,205.39,0.03]
[1755165599719,49.85986145,205.4,205.39,0.03]
[1755165600357,14.58986145,205.4,205.39,0.03]
[1755165600520,49.84986145,205.4,205.39,0.03]
[1755165601120,49.14986145,205.4,205.39,0.72]
[1755165601348,9.72131228,205.4,205.39,0.72]
[1755165602064,39.42841237,205.41,205.39,0.72]
[1755165602360,9.72131228,205.4,205.39,0.03]
[1755165602732,10.42131228,205.4,205.39,0.03]
[1755165603248,49.14986145,205.4,205.39,0.03]
[1755165603863,49.84986145,205.4,205.39,0.03]
[1755165604325,15.10621557,205.39,205.34,0.03]
[1755165604531,9.72131228,205.35,205.3,0.03]
[1755165604730,9.72131228,205.33,205.3,0.03]
[1755165605027,10.42131228,205.33,205.3,0.03]
[1755165605254,15.29152121,205.33,205.3,0.03]
[1755165605957,15.29152121,205.33,205.22,2.636993]
[1755165605958,15.10621557,205.32,205.22,2.636993]
[1755165606161,9.72131228,205.23,205.22,0.69]
[1755165606550,9.72131228,205.23,205.17,26.0]
[1755165606740,34.56,205.22,205.2,0.69]
[1755165606945,9.72131228,205.21,205.16,0.1]
[1755165607141,9.72131228,205.19,205.17,26.0]
[1755165607350,34.56,205.22,205.16,0.1]
[1755165607538,39.43290212,205.22,205.18,0.69]
[1755165607739,39.43290212,205.22,205.16,0.1]
[1755165607941,0.7,205.21,205.16,0.1]
[1755165608148,4.87290212,205.22,205.17,0.69]
[1755165608460,34.56,205.2,205.17,0.69]
[1755165608662,34.56,205.2,205.18,0.69]
[1755165608959,9.72131228,205.19,205.16,0.1]
[1755165609166,9.72131228,205.17,205.16,0.1]
[1755165609556,9.72131228,205.17,205.16,0.79]
[1755165610751,34.56,205.2,205.16,0.79]
[1755165610952,34.56,205.2,205.16,0.1]
[1755165610953,9.72131228,205.17,205.16,0.1]
[1755165611762,9.72131228,205.17,205.16,0.79]
[1755165613065,9.72131228,205.2,205.16,0.79]
[1755165613567,9.72131228,205.19,205.16,0.79]
[1755165613757,9.72131228,205.2,205.16,0.79]
[1755165614156,9.72131228,205.19,205.16,0.79]
[1755165614360,9.72131228,205.17,205.16,0.79]
[1755165614752,9.72131228,205.18,205.16,0.79]
[1755165614954,9.72131228,205.17,205.16,0.79]
[1755165615358,4.87234493,205.24,205.16,0.79]
[1755165615559,9.72131228,205.22,205.16,0.79]
[1755165615866,9.72131228,205.21,205.17,26.0]
[1755165616074,9.72131228,205.2,205.18,0.69]
[1755165617273,132.5,205.3,205.19,0.69]
[1755165617274,79.6,205.27,205.19,0.69]
[1755165617652,79.6,205.27,205.22,26.0]
[1755165617951,89.32131228,205.27,205.23,0.69]
[1755165618151,89.32131228,205.27,205.24,0.69]
[1755165618556,79.6,205.27,205.18,26.0]
[1755165618763,79.6,205.27,205.25,0.69]
[1755165618962,79.6,205.27,205.22,40.603159]
[1755165619169,79.6,205.27,205.26,0.69]
[1755165619356,79.6,205.27,205.24,0.69]
[1755165619678,79.6,205.27,205.25,0.69]
[1755165620179,79.6,205.36,205.26,0.69]
[1755165620359,9.72131228,205.33,205.26,0.69]
[1755165620871,9.72131228,205.31,205.26,0.69]
[1755165621654,9.72131228,205.31,205.29,26.0]
[1755165622871,4.87025458,205.33,205.29,26.0]
[1755165623069,9.72131228,205.31,205.29,26.69]
[1755165623779,9.72131228,205.31,205.29,26.0]
[1755165624072,4.87025458,205.33,205.26,9.721312]
[1755165624073,9.72131228,205.3,205.27,26.69]
[1755165624271,9.72131228,205.32,205.28,0.69]
[1755165624591,79.6,205.31,205.29,0.69]
[1755165625069,79.6,205.31,205.27,0.69]
[1755165625249,89.32131228,205.31,205.28,0.69]
[1755165625651,89.38131228,205.31,205.28,0.69]
[1755165628193,79.66,205.31,205.28,0.69]
[1755165628377,89.38131228,205.31,205.28,0.69]
[1755165628669,9.72131228,205.29,205.28,26.0]
[1755165629555,10.42131228,205.29,205.24,0.69]
[1755165629756,9.72131228,205.27,205.24,0.69]
[1755165629955,5.57120187,205.29,205.24,0.69]
[1755165629956,9.72131228,205.26,205.25,26.0]
[1755165630181,9.72131228,205.26,205.22,26.69]
[1755165630354,9.72131228,205.26,205.24,26.0]
[1755165630554,9.72131228,205.27,205.24,26.0]
[1755165630848,9.72131228,205.27,205.24,26.69]
[1755165631260,9.72131228,205.27,205.24,0.69]
[1755165631463,9.72131228,205.26,205.24,26.69]
[1755165631662,9.72131228,205.26,205.24,26.0]
[1755165631956,9.72131228,205.27,205.24,26.69]
[1755165633262,79.6,205.25,205.24,26.69]
[1755165634354,89.32131228,205.25,205.24,26.69]
[1755165634656,79.6,205.25,205.24,26.69]
[1755165635277,79.6,205.25,205.24,61.25]
[1755165636882,78.9045393,205.25,205.24,61.25]
[1755165639169,78.9045393,205.25,205.24,26.69]
[1755165639368,78.9045393,205.25,205.24,61.23]
[1755165639577,78.9045393,205.25,205.24,60.54]
[1755165639762,88.62585158,205.25,205.24,60.54]
[1755165639963,78.9045393,205.25,205.24,61.23]
[1755165640702,78.9045393,205.29,205.24,61.23]
[1755165640867,78.9045393,205.29,205.24,60.54]
[1755165641068,78.9045393,205.29,205.25,0.69]
[1755165641489,78.9045393,205.29,205.24,60.54]
[1755165641695,78.9045393,205.29,205.25,0.69]
[1755165642060,78.9045393,205.29,205.26,0.69]
[1755165642258,0.06,205.31,205.3,41.10621557]
[1755165642593,0.06,205.31,205.3,76.33621557]
[1755165643368,0.06,205.31,205.3,41.79621557]
[1755165643566,0.06,205.31,205.3,36.486141]
[1755165643766,0.06,205.31,205.3,37.176141]
[1755165643985,10.47131228,205.31,205.3,27.946141]
[1755165644288,10.47131228,205.31,205.3,26.0]
[1755165644580,10.47131228,205.31,205.28,34.54]
[1755165644779,9.72131228,205.3,205.28,34.54]
[1755165644987,9.72131228,205.3,205.28,60.54]
[1755165645868,9.72131228,205.29,205.28,60.54]
[1755165646273,0.06,205.31,205.28,26.0]
[1755165646478,0.06,205.31,205.3,26.0]
[1755165646772,0.06,205.31,205.3,26.69]
[1755165647381,0.06,205.31,205.3,0.69]
[1755165649598,0.06,205.31,205.3,15.288185]
[1755165650980,0.06,205.31,205.3,14.598185]
[1755165651184,10.47131228,205.31,205.29,60.54]
[1755165651390,89.31585158,205.3,205.26,14.601027]
[1755165651585,9.72131228,205.27,205.25,34.54]
[1755165651783,78.9045393,205.3,205.26,0.69]
[1755165652098,78.9045393,205.3,205.28,26.0]
[1755165652286,78.9045393,205.3,205.29,34.54]
[1755165652492,78.9045393,205.3,205.29,35.23]
[1755165652687,0.06,205.31,205.29,35.23]
[1755165653092,0.06,205.31,205.29,49.828185]
[1755165653291,0.06,205.31,205.3,0.69]
[1755165653788,0.06,205.31,205.3,15.79621557]
[1755165653989,0.06,205.31,205.3,17.74235657]
[1755165654791,0.06,205.31,205.3,2.636141]
[1755165658877,0.06,205.31,205.3,17.74235657]
[1755165659630,0.06,205.31,205.3,18.22944863]
[1755165660084,0.06,205.31,205.3,17.74235657]
[1755165660600,0.06,205.31,205.3,52.26235657]
[1755165663609,0.06,205.31,205.3,37.156141]
[1755165663811,0.06,205.31,205.3,52.26235657]
[1755165665088,0.06,205.31,205.3,17.74235657]
[1755165665308,0.06,205.31,205.3,52.26235657]
[1755165665497,0.06,205.31,205.3,17.74235657]
[1755165665738,0.06,205.31,205.3,52.26235657]
[1755165666994,0.06,205.31,205.3,37.156141]
[1755165667315,0.76,205.31,205.21,0.03]
[1755165667505,9.72131228,205.3,205.24,15.10621557]
[1755165667699,0.7,205.29,205.27,1.94652]
[1755165667905,0.06,205.31,205.28,34.52]
[1755165668204,0.76,205.31,205.28,34.52]
[1755165668405,0.7,205.3,205.28,34.52]
[1755165668607,0.06,205.31,205.3,41.10621557]
[1755165668921,0.06,205.31,205.3,76.34621557]
[1755165670194,0.06,205.31,205.3,60.52]
[1755165670395,0.76,205.31,205.3,60.52]
[1755165670609,0.76,205.31,205.3,34.52]
[1755165674325,0.06,205.31,205.3,34.52]
[1755165674503,0.06,205.31,205.29,34.52]
[1755165674504,10.48131228,205.31,205.29,34.52]
[1755165674706,0.7,205.3,205.29,34.52]
[1755165674913,0.7,205.3,205.29,0.65231153]
[1755165675101,0.7,205.3,205.27,34.52]
[1755165675301,0.7,205.29,205.27,34.52]
[1755165675518,0.7,205.28,205.25,0.03]
[1755165675737,9.72131228,205.26,205.25,0.03]
[1755165675919,9.72131228,205.28,205.25,0.03]
[1755165676219,0.7,205.28,205.25,0.03]
[1755165676418,10.42131228,205.3,205.26,26.0]
[1755165676621,0.7,205.29,205.26,26.0]
[1755165676805,9.72131228,205.3,205.26,26.0]
[1755165677126,0.7,205.28,205.26,26.0]
[1755165678321,10.42131228,205.28,205.26,26.0]
[1755165678522,10.42131228,205.27,205.26,26.0]
[1755165678823,10.42131228,205.27,205.25,0.03]
[1755165679026,0.06,205.31,205.25,0.03]
[1755165679198,0.7,205.27,205.25,0.03]
[1755165681198,0.7,205.3,205.25,0.03]
[1755165681637,0.06,205.31,205.26,0.72]
[1755165681802,0.06,205.31,205.26,10.501312]
[1755165682138,0.06,205.31,205.3,26.0]
[1755165682804,0.06,205.31,205.3,26.72]
[1755165683632,0.06,205.31,205.3,26.0]
[1755165684210,0.06,205.31,205.3,35.26]
[1755165684546,0.06,205.31,205.3,34.54]
[1755165684908,0.06,205.31,205.29,1.946425]
[1755165685115,0.06,205.31,205.28,60.54]
[1755165685461,0.06,205.31,205.28,70.321313]
[1755165686749,0.06,205.31,205.3,15.10621557]
[1755165687243,0.06,205.31,205.28,35.781313]
[1755165687614,0.06,205.31,205.28,70.321313]
[1755165687820,0.06,205.31,205.29,0.72]
[1755165688216,0.06,205.31,205.28,70.321313]
[1755165688217,0.06,205.31,205.3,0.72]
[1755165688535,0.06,205.31,205.28,70.321313]
[1755165688536,0.06,205.31,205.28,71.041313]
[1755165688713,0.06,205.31,205.29,0.72]
[1755165689136,0.06,205.31,205.3,0.72]
[1755165692021,0.06,205.31,205.29,15.10621557]
[1755165692226,0.06,205.31,205.3,34.54]
[1755165692422,0.06,205.31,205.3,26.0]
[1755165692627,0.75,205.31,205.3,26.0]
[1755165694450,0.75,205.31,205.28,44.321313]
[1755165694827,0.75,205.31,205.3,26.0]
[1755165696735,0.06,205.31,205.3,26.0]
[1755165699222,0.06,205.31,205.3,50.34621557]
[1755165699830,0.06,205.31,205.3,64.94226957]
[1755165703275,0.06,205.31,205.3,65.42936163]
[1755165704452,0.06,205.31,205.3,64.94226957]
[1755165709463,0.06,205.31,205.3,64.26226957]
[1755165712651,0.06,205.31,205.3,64.98226957]
[1755165716660,0.06,205.34,205.33,41.10621557]
[1755165716855,0.06,205.34,205.33,76.85323646]
[1755165717368,0.06,205.34,205.33,78.79871446]
[1755165718066,0.06,205.34,205.33,44.25871446]
[1755165718372,0.06,205.34,205.33,78.77871446]
[1755165721166,0.06,205.34,205.33,17.53871446]
[1755165721370,0.06,205.34,205.33,1.945478]
[1755165721556,0.72,205.34,205.29,0.03]
[1755165721754,9.72131228,205.33,205.29,0.03]
[1755165721967,0.66,205.32,205.29,0.03]
[1755165722157,0.66,205.32,205.31,26.0]
[1755165722672,0.66,205.32,205.29,60.59]
[1755165722866,0.66,205.32,205.29,34.59]
[1755165723380,0.06,205.34,205.32,26.0]
[1755165723553,0.06,205.34,205.29,34.59]
[1755165724074,0.66,205.33,205.32,26.0]
[1755165724751,10.38131228,205.33,205.32,26.0]
[1755165725154,0.66,205.33,205.32,26.0]
[1755165725570,10.38131228,205.33,205.32,26.0]
[1755165725961,10.38131228,205.33,205.29,0.03]
[1755165726150,9.72131228,205.3,205.29,0.03]
[1755165726358,10.38131228,205.3,205.29,0.03]
[1755165726558,15.25223288,205.3,205.29,0.03]
[1755165726761,10.38131228,205.3,205.29,0.03]
[1755165727258,0.66,205.3,205.29,0.03]
[1755165727980,78.9045393,205.33,205.29,0.03]
[1755165728289,79.5645393,205.33,205.29,0.03]
[1755165728474,78.9045393,205.33,205.29,0.03]
[1755165728789,0.06,205.34,205.32,26.0]
[1755165731278,0.06,205.34,205.33,26.0]
[1755165735665,0.72,205.34,205.33,26.0]
[1755165735884,0.72,205.34,205.32,26.0]
[1755165736067,0.72,205.34,205.29,0.03]
[1755165736267,0.72,205.34,205.29,26.03]
[1755165736467,0.66,205.33,205.29,26.03]
[1755165736678,0.06,205.34,205.3,0.67]
[1755165736992,0.66,205.33,205.29,26.03]
[1755165737200,0.66,205.32,205.29,26.03]
[1755165737578,0.66,205.31,205.29,26.03]
[1755165737794,0.66,205.31,205.29,0.03]
[1755165738384,0.66,205.31,205.29,26.03]
[1755165738670,0.66,205.31,205.29,0.03]
[1755165738869,0.66,205.31,205.29,26.03]
[1755165739083,9.72131228,205.33,205.29,26.03]
[1755165739269,9.72131228,205.33,205.29,0.03]
[1755165739270,0.66,205.3,205.29,0.03]
[1755165740400,44.94131228,205.33,205.29,0.03]
[1755165740595,35.22,205.33,205.29,0.03]
[1755165740823,113.5245393,205.34,205.29,0.7]
[1755165741469,114.1845393,205.34,205.29,0.7]
[1755165741668,78.9645393,205.34,205.29,0.7]
[1755165741985,79.6245393,205.34,205.29,0.7]
[1755165742186,78.9645393,205.34,205.31,26.0]
[1755165742385,78.9645393,205.34,205.32,0.67]
[1755165742573,78.9645393,205.34,205.33,0.67]
[1755165742774,0.06,205.34,205.33,0.67]
[1755165742991,0.06,205.34,205.33,15.77621557]
[1755165743194,0.06,205.34,205.33,16.26323646]
[1755165743370,0.06,205.34,205.33,0.67]
[1755165743570,0.06,205.34,205.33,26.0]
[1755165745377,0.59,205.34,205.29,14.626054]
[1755165745580,0.53,205.33,205.29,0.03]
[1755165745782,9.72131228,205.32,205.29,0.03]
[1755165745983,0.53,205.31,205.3,26.0]
[1755165746992,10.25131228,205.31,205.29,0.03]
[1755165747189,0.53,205.3,205.29,0.03]
[1755165748577,0.53,205.33,205.29,0.03]
[1755165748769,78.9645393,205.34,205.29,0.03]
[1755165748971,78.9645393,205.34,205.3,26.67]
[1755165749193,79.4945393,205.34,205.3,26.0]
[1755165749406,78.9645393,205.34,205.3,26.67]
[1755165749694,0.53,205.33,205.3,26.0]
[1755165749988,0.53,205.32,205.3,26.0]
[1755165750194,10.25131228,205.31,205.3,26.0]
[1755165750498,10.25131228,205.31,205.27,25.9611]
[1755165750671,0.7,205.3,205.27,25.9611]
[1755165751873,78.9645393,205.34,205.27,26.6811]
[1755165752089,88.68585158,205.34,205.28,0.72]
[1755165752297,88.68585158,205.34,205.27,25.9611]
[1755165752298,9.72131228,205.32,205.27,25.9611]
[1755165752507,10.42131228,205.31,205.27,25.9611]
[1755165752697,0.7,205.31,205.27,25.9611]
[1755165752883,0.7,205.3,205.27,25.9611]
[1755165753977,0.7,205.29,205.26,0.03]
[1755165754178,0.7,205.28,205.26,0.03]
[1755165754401,0.7,205.28,205.27,26.0]
[1755165754601,78.9045393,205.27,205.26,0.03]
[1755165754796,89.32585158,205.27,205.26,0.03]
[1755165755313,10.42131228,205.27,205.26,0.03]
[1755165755516,144.6760689,205.33,205.26,0.03]
[1755165755517,4.87044613,205.32,205.26,0.03]
[1755165755696,9.72131228,205.28,205.26,0.03]
[1755165756086,10.42131228,205.28,205.26,0.03]
[1755165757005,10.42131228,205.27,205.26,0.03]
[1755165760387,49.89294476,205.27,205.26,0.03]
[1755165763495,64.99916033,205.27,205.26,0.03]
[1755165764006,15.10621557,205.26,205.25,0.03]
[1755165764207,25.52752785,205.26,205.25,0.03]
[1755165765216,30.39939767,205.26,205.25,0.03]
[1755165766813,30.39939767,205.26,205.23,0.03]
[1755165767112,50.82752785,205.24,205.23,1e-08]
[1755165767318,90.99987242,205.24,205.23,1e-08]
[1755165770600,15.10621557,205.23,205.22,1e-08]
[1755165770805,15.10621557,205.23,205.17,0.03]
[1755165770806,15.10621557,205.2,205.17,0.03]
[1755165771007,24.82752785,205.18,205.17,0.03]
[1755165771208,25.52752785,205.18,205.17,0.03]
[1755165771800,30.40129722,205.18,205.17,0.03]
[1755165774437,4.87357937,205.19,205.17,0.03]
[1755165774720,34.56,205.18,205.17,0.75]
[1755165774927,44.28131228,205.18,205.17,0.75]
[1755165775222,44.28131228,205.18,205.17,0.03]
[1755165776125,49.15508165,205.18,205.17,0.03]
[1755165776329,34.56,205.18,205.17,0.75]
[1755165776701,49.15508165,205.18,205.17,0.75]
[1755165777012,49.15508165,205.18,205.17,0.03]
[1755165777209,14.59508165,205.18,205.17,0.03]
[1755165777437,49.15508165,205.18,205.17,0.03]
[1755165777825,132.5,205.19,205.17,0.75]
[1755165778128,132.5,205.19,205.18,0.72]
[1755165778303,167.06,205.19,205.18,0.72]
[1755165778837,171.93367639,205.19,205.17,0.03]
[1755165779008,181.65498867,205.19,205.17,0.03]
[1755165779328,181.65498867,205.19,205.17,0.75]
[1755165779513,171.93367639,205.19,205.17,0.75]
[1755165780907,171.93367639,205.19,205.18,0.03]
[1755165782008,172.65367639,205.19,205.18,0.03]
[1755165782207,171.93367639,205.19,205.18,0.03]
[1755165782938,182.37498867,205.19,205.18,0.03]
[1755165783425,182.37498867,205.19,205.18,0.72]
[1755165783426,132.5,205.19,205.18,0.72]
[1755165783629,167.06,205.19,205.18,0.72]
[1755165784426,167.06,205.19,205.18,0.03]
[1755165785003,171.93353184,205.19,205.18,0.03]
[1755165785711,181.65484412,205.19,205.18,0.03]
[1755165785916,182.37484412,205.19,205.18,0.03]
[1755165786111,197.48105969,205.19,205.18,0.03]
[1755165787306,79.41,205.15,205.14,0.69]
[1755165787510,44.28131228,205.15,205.14,0.69]
[1755165787705,132.5,205.18,205.14,0.69]
[1755165787920,34.56,205.17,205.14,0.69]
[1755165788123,34.56,205.16,205.14,0.69]
[1755165789430,34.56,205.16,205.13,0.03]
[1755165789609,9.72131228,205.15,205.13,0.03]
[1755165789808,34.56,205.14,205.13,0.03]
[1755165790010,44.28131228,205.14,205.13,0.03]
[1755165790310,44.28131228,205.14,205.13,0.72]
[1755165790619,44.28131228,205.14,205.13,0.03]
[1755165792030,49.15603198,205.14,205.13,0.03]
[1755165793114,39.4347197,205.14,205.13,0.03]
[1755165793309,49.15603198,205.14,205.13,0.03]
[1755165793811,49.87603198,205.14,205.13,0.03]
[1755165795033,40.1547197,205.14,205.13,0.03]
[1755165795215,49.15603198,205.14,205.13,0.03]
[1755165796516,44.28131228,205.14,205.13,0.03]
[1755165796723,34.56,205.14,205.13,0.03]
[1755165797108,44.28131228,205.14,205.13,0.03]
[1755165797515,49.15603198,205.14,205.13,0.03]
[1755165798130,49.87603198,205.14,205.13,0.03]
[1755165798328,49.87603198,205.14,205.11,0.03]
[1755165798329,79.59999999,205.12,205.11,0.03]
[1755165798657,45.00131228,205.12,205.08,0.03]
[1755165798866,9.72131228,205.09,205.08,0.03]
[1755165799143,44.28131228,205.09,205.08,0.03]
[1755165799509,45.00131228,205.09,205.08,0.03]
[1755165799945,44.28131228,205.09,205.08,0.03]
[1755165800428,49.15722041,205.09,205.08,0.03]
[1755165800746,64.26343598,205.09,205.08,0.03]
[1755165800941,64.98343598,205.09,205.08,0.03]
[1755165801440,49.15722041,205.09,205.08,0.03]
[1755165801827,4.87546475,205.11,205.08,0.03]
[1755165802144,9.72131228,205.09,205.08,0.03]
[1755165802332,12.90456199,205.18,205.08,0.72]
[1755165802545,53.29420766,205.17,205.08,0.72]
[1755165802849,9.72131228,205.14,205.08,0.72]
[1755165803026,34.58,205.13,205.08,0.72]
[1755165803231,9.72131228,205.11,205.09,0.69]